[Event "RUS-chT Premier 2021"]
[White "Alexeev,Alexey"]
[Black "Kobalia,Mikhail"]
[WhiteTeam "Киммерия"]
[BlackTeam "Гоголевский, 14"]
[Site "Sochi"]
[Round "2.9"]
[Annotator "ChessBase"]
[Result "0-1"]
[Date "2021.05.02"]
[WhiteElo "2243"]
[BlackElo "2587"]
[PlyCount "112"]
[TimeControl "60"]

1. e4 {[%emt 0:0:0]} c6 {[%emt 0:0:0]} 2. d4 {[%emt 0:0:20]} d5 {[%emt 0:0:0]} 3. e5 {[%emt 0:0:36]} Bf5 {[%emt 0:0:14]} 4. Nf3 {[%emt 0:0:19]} e6 {[%emt 0:0:4]} 5. Be2 {[%emt 0:0:9]} Ne7 {[%emt 0:0:55]} 6. 0-0 {[%emt 0:0:0]} Nd7 {[%emt 0:0:12]} 7. Nbd2 {[%emt 0:0:19]} Bg6 {[%emt 0:3:24]} 8. Nb3 {[%emt 0:0:33]} Nf5 {[%emt 0:0:9]} 9. Bd2 {[%emt 0:1:34]} Rc8 {[%emt 0:0:0]} 10. Rc1 {[%emt 0:0:48]} Be7 {[%emt 0:0:50]} 11. g4 {[%emt 0:5:46]} Nh6 {[%emt 0:0:35]} 12. h3 {[%emt 0:4:49]} 0-0 {[%emt 0:1:36]} 13. Be3 {[%emt 0:3:8]
} f6 {[%emt 0:17:11]} 14. exf6 {[%emt 0:2:36]} Rxf6 {[%emt 0:0:0]} 15. g5 {[%emt 0:1:33]} Rxf3 {[%emt 0:0:19]} 16. Bxf3 {[%emt 0:0:30]} Bxg5 {[%emt 0:0:40]} 17. Qd2 {[%emt 0:5:59]} Nf7 {[%emt 0:3:46]} 18. Bg4 {[%emt 0:3:41]
} Qf6 {[%emt 0:1:16]} 19. Rce1 {[%emt 0:4:33]} Re8 {[%emt 0:0:0]} 20. Bxg5 {[%emt 0:8:27]} Nxg5 {[%emt 0:0:34]} 21. f4 {[%emt 0:0:11]} Ne4 {[%emt 0:0:36]} 22. Qg2 {[%emt 0:0:15]} Nb6 {[%emt 0:3:29]} 23. c3 {[%emt 0:6:47]
} Nc4 {[%emt 0:7:13]} 24. Nc5 {[%emt 0:3:26]} Ncd2 {[%emt 0:0:0]} 25. Nxe4 {[%emt 0:1:40]} Nxe4 {[%emt 0:0:12]} 26. Bf3 {[%emt 0:1:43]} Rf8 {[%emt 0:4:24]} 27. Bxe4 {[%emt 0:1:51]} Bxe4 {[%emt 0:3:11]} 28. Qg5 {[%emt 0:0:24]
} Qf7 {[%emt 0:0:8]} 29. Kh2 {[%emt 0:12:42]} Qd7 {[%emt 0:0:0]} 30. Re3 {[%emt 0:4:20]} Rf5 {[%emt 0:1:44]} 31. Qh4 {[%emt 0:0:54]} Rf6 {[%emt 0:4:14]} 32. Rg3 {[%emt 0:0:48]} Bg6 {[%emt 0:9:42]} 33. Rg5 {[%emt 0:1:32]
} Qf7 {[%emt 0:0:26]} 34. Re5 {[%emt 0:5:11]} Be4 {[%emt 0:0:0]} 35. Qg3 {[%emt 0:9:48]} h6 {[%emt 0:2:53]} 36. Rf2 {[%emt 0:4:6]} Kh8 {[%emt 0:2:54]} 37. Qh4 {[%emt 0:0:54]} Kg8 {[%emt 0:2:13]} 38. Kg1 {[%emt 0:0:50]
} b6 {[%emt 0:1:1]} 39. a3 {[%emt 0:0:36]} c5 {[%emt 0:0:28]} 40. Qh5 {[%emt 0:0:0]} Qxh5 {[%emt 0:0:0]} 41. Rxh5 {[%emt 0:2:54]} cxd4 {[%emt 0:9:32]
} 42. cxd4 {[%emt 0:0:16]} Bf5 {[%emt 0:0:57]} 43. Rf3 {[%emt 0:1:20]
} Kh7 {[%emt 0:3:53]} 44. Rc3 {[%emt 0:1:20]} Kg6 {[%emt 0:0:0]} 45. Rh4 {[%emt 0:0:28]} Rf8 {[%emt 0:1:58]} 46. Kf2 {[%emt 0:4:0]} h5 {[%emt 0:2:57]} 47. Rc7 {[%emt 0:2:19]} a5 {[%emt 0:1:9]} 48. Rb7 {[%emt 0:0:0]} Kh6 {[%emt 0:5:21]} 49. Rxb6 {[%emt 0:1:14]} Rc8 {[%emt 0:0:41]} 50. Kg3 {[%emt 0:0:35]} Rc1 {[%emt 0:0:34]} 51. Rb8 {[%emt 0:0:24]} g6 {[%emt 0:0:0]} 52. Rh8+ {[%emt 0:5:11]} Kg7 {[%emt 0:0:1]} 53. Ra8 {[%emt 0:0:15]} Rb1 {[%emt 0:2:8]} 54. Rxa5 {[%emt 0:1:15]} Rxb2 {[%emt 0:0:5]} 55. Ra7+ {[%emt 0:0:5]
} Kf6 {[%emt 0:2:13]} 56. Ra4 {[%emt 0:5:30]} Be4 {[%emt 0:0:0]} 0-1

[Event "RUS-chT Premier 2021"]
[White "Murzin,Volodar"]
[Black "Babakekhyan,Artem"]
[WhiteTeam "Гоголевский, 14"]
[BlackTeam "Киммерия"]
[Site "Sochi"]
[Round "2.10"]
[Annotator "ChessBase"]
[Result "1-0"]
[Date "2021.05.02"]
[WhiteElo "2478"]
[BlackElo "2214"]
[PlyCount "59"]
[TimeControl "60"]

1. e4 {[%emt 0:0:0]} c5 {[%emt 0:0:0]} 2. Nf3 {[%emt 0:0:0]} d6 {[%emt 0:0:0]} 3. d4 {[%emt 0:0:0]} cxd4 {[%emt 0:0:0]} 4. Qxd4 {[%emt 0:0:0]} Nc6 {[%emt 0:0:24]} 5. Qe3 {[%emt 0:0:0]} Nf6 {[%emt 0:12:10]} 6. Be2 {[%emt 0:1:12]
} g6 {[%emt 0:5:25]} 7. 0-0 {[%emt 0:0:41]} Bg7 {[%emt 0:0:58]
} 8. Rd1 {[%emt 0:0:15]} Ng4 {[%emt 0:4:23]} 9. Qb3 {[%emt 0:6:5]} Be6 {[%emt 0:8:4]
} 10. Qxb7 {[%emt 0:5:43]} Na5 {[%emt 0:1:22]} 11. Qa6 {[%emt 0:0:28]
} Qc7 {[%emt 0:8:58]} 12. h3 {[%emt 0:6:57]} Ne5 {[%emt 0:0:0]} 13. Nxe5 {[%emt 0:5:59]} Bxe5 {[%emt 0:0:23]} 14. Bd2 {[%emt 0:2:44]} Nc4 {[%emt 0:6:25]} 15. Bxc4 {[%emt 0:6:10]} Bxc4 {[%emt 0:9:21]} 16. Qa4+ {[%emt 0:0:19]
} Kf8 {[%emt 0:0:9]} 17. Bc3 {[%emt 0:0:25]} Rb8 {[%emt 0:0:0]} 18. Bxe5 {[%emt 0:18:27]} dxe5 {[%emt 0:0:43]} 19. Rd7 {[%emt 0:2:12]} Qc8 {[%emt 0:3:57]} 20. Rxa7 {[%emt 0:1:12]} Kg7 {[%emt 0:6:51]} 21. Qa3 {[%emt 0:12:44]
} Rd8 {[%emt 0:2:6]} 22. Nc3 {[%emt 0:0:16]} Rd2 {[%emt 0:0:0]} 23. Qxe7 {[%emt 0:1:2]} Be6 {[%emt 0:3:50]} 24. Qg5 {[%emt 0:7:57]} Rxc2 {[%emt 0:2:37]} 25. Qxe5+ {[%emt 0:0:9]} Kg8 {[%emt 0:0:15]} 26. Rc7 {[%emt 0:0:55]
} Qd8 {[%emt 0:3:0]} 27. Nd5 {[%emt 0:0:25]} Rxc7 {[%emt 0:0:0]} 28. Nxc7 {[%emt 0:0:6]} Rb6 {[%emt 0:2:6]} 29. Nd5 {[%emt 0:1:27]} Bxd5 {[%emt 0:0:20]} 30. exd5 {[%emt 0:0:2]} 1-0

[Event "RUS-chT Premier 2021"]
[White "Pervakov,Sergey"]
[Black "Savchenko,Boris"]
[WhiteTeam "Киммерия"]
[BlackTeam "Гоголевский, 14"]
[Site "Sochi"]
[Round "2.11"]
[Annotator "ChessBase"]
[Result "0-1"]
[Date "2021.05.02"]
[WhiteElo "2056"]
[BlackElo "2552"]
[PlyCount "66"]
[TimeControl "60"]

1. e4 {[%emt 0:0:0]} c5 {[%emt 0:0:0]} 2. a3 {[%emt 0:0:0]} e6 {[%emt 0:0:0]} 3. b4 {[%emt 0:0:0]} cxb4 {[%emt 0:0:0]} 4. axb4 {[%emt 0:0:0]} Bxb4 {[%emt 0:0:0]} 5. Bb2 {[%emt 0:0:4]} Bf8 {[%emt 0:0:0]} 6. Ra3 {[%emt 0:6:20]
} Nc6 {[%emt 0:5:13]} 7. Rg3 {[%emt 0:7:4]} Nf6 {[%emt 0:0:0]} 8. e5 {[%emt 0:10:42]} Ne4 {[%emt 0:3:20]} 9. Re3 {[%emt 0:1:12]} Qb6 {[%emt 0:3:32]
} 10. Ba3 {[%emt 0:11:55]} d5 {[%emt 0:5:28]} 11. Bxf8 {[%emt 0:0:0]} Rxf8 {[%emt 0:4:26]} 12. c3 {[%emt 0:7:45]} Qb2 {[%emt 0:17:2]} 13. f3 {[%emt 0:4:39]} Nc5 {[%emt 0:1:14]} 14. d4 {[%emt 0:1:5]} Na4 {[%emt 0:0:0]} 15. Ne2 {[%emt 0:11:7]} Bd7 {[%emt 0:1:55]} 16. Nf4 {[%emt 0:1:11]} Na5 {[%emt 0:3:14]} 17. Be2 {[%emt 0:6:8]} Rc8 {[%emt 0:1:8]} 18. 0-0 {[%emt 0:2:18]
} Nxc3 {[%emt 0:2:39]} 19. Nxc3 {[%emt 0:2:48]} Rxc3 {[%emt 0:0:0]} 20. Rxc3 {[%emt 0:0:46]} Qxc3 {[%emt 0:0:6]} 21. Nh5 {[%emt 0:1:8]
} Nb3 {[%emt 0:0:25]} 22. Nxg7+ {[%emt 0:2:57]} Ke7 {[%emt 0:0:41]} 23. Kh1 {[%emt 0:0:29]} Nxd4 {[%emt 0:0:23]} 24. Bd3 {[%emt 0:3:51]} Rg8 {[%emt 0:0:0]} 25. Nh5 {[%emt 0:0:35]} Rg5 {[%emt 0:0:44]} 26. f4 {[%emt 0:1:39]} Rxh5 {[%emt 0:1:6]} 27. Qxh5 {[%emt 0:0:23]} Qxd3 {[%emt 0:0:8]} 28. Qg5+ {[%emt 0:0:52]} Kf8 {[%emt 0:0:9]} 29. Qd8+ {[%emt 0:3:12]} Be8 {[%emt 0:0:0]} 30. Qd6+ {[%emt 0:1:53]} Kg7 {[%emt 0:0:29]} 31. Ra1 {[%emt 0:0:22]} Bc6 {[%emt 0:1:2]} 32. h4 {[%emt 0:1:17]} Qg6 {[%emt 0:0:29]} 33. Ra3 {[%emt 0:1:9]
} Nb5 {[%emt 0:0:10]} 0-1

[Event "RUS-chT Premier 2021"]
[White "Shubin,Kirill"]
[Black "Matlakov,Maxim"]
[WhiteTeam "СШОР"]
[BlackTeam "Медный всадник"]
[Site "Sochi"]
[Round "2.13"]
[Annotator "ChessBase"]
[Result "1/2-1/2"]
[Date "2021.05.02"]
[WhiteElo "2466"]
[BlackElo "2688"]
[PlyCount "82"]
[TimeControl "60"]

1. e4 {[%emt 0:0:0]} c5 {[%emt 0:0:0]} 2. Nf3 {[%emt 0:0:0]} d6 {[%emt 0:0:0]} 3. Bb5+ {[%emt 0:0:0]} Nd7 {[%emt 0:0:31]} 4. Ba4 {[%emt 0:0:2]} Ngf6 {[%emt 0:1:5]} 5. 0-0 {[%emt 0:0:10]} e6 {[%emt 0:0:41]} 6. d3 {[%emt 0:0:6]
} Be7 {[%emt 0:2:39]} 7. c4 {[%emt 0:2:24]} 0-0 {[%emt 0:5:37]
} 8. Nc3 {[%emt 0:0:48]} Qc7 {[%emt 0:2:13]} 9. Qe2 {[%emt 0:2:15]} a6 {[%emt 0:4:56]
} 10. h3 {[%emt 0:4:43]} b6 {[%emt 0:4:12]} 11. Nh2 {[%emt 0:0:0]} Bb7 {[%emt 0:24:46]} 12. f4 {[%emt 0:3:0]} Bc6 {[%emt 0:11:46]} 13. Bxc6 {[%emt 0:5:39]} Qxc6 {[%emt 0:0:4]} 14. a4 {[%emt 0:2:19]} Ne8 {[%emt 0:9:2]
} 15. f5 {[%emt 0:6:45]} Bf6 {[%emt 0:2:12]} 16. Bd2 {[%emt 0:0:0]} Bd4+ {[%emt 0:3:8]} 17. Kh1 {[%emt 0:0:7]} Ne5 {[%emt 0:4:25]} 18. Rf4 {[%emt 0:10:13]} Nf6 {[%emt 0:4:5]} 19. g4 {[%emt 0:3:11]} Nfd7 {[%emt 0:3:4]
} 20. Raf1 {[%emt 0:8:29]} Bxc3 {[%emt 0:1:29]} 21. Bxc3 {[%emt 0:0:6]
} b5 {[%emt 0:1:25]} 22. f6 {[%emt 0:9:10]} Nxf6 {[%emt 0:0:0]} 23. g5 {[%emt 0:1:57]} Nfd7 {[%emt 0:2:23]} 24. Qh5 {[%emt 0:1:43]} f6 {[%emt 0:4:50]} 25. Bxe5 {[%emt 0:7:11]} Nxe5 {[%emt 0:0:5]} 26. Rh4 {[%emt 0:1:51]
} h6 {[%emt 0:0:22]} 27. gxf6 {[%emt 0:0:42]} Qe8 {[%emt 0:0:0]} 28. Qe2 {[%emt 0:0:42]} bxc4 {[%emt 0:0:50]} 29. dxc4 {[%emt 0:0:26]} Rxf6 {[%emt 0:2:35]} 30. Rxf6 {[%emt 0:0:22]} gxf6 {[%emt 0:0:1]} 31. Rf4 {[%emt 0:6:23]
} Ra7 {[%emt 0:2:4]} 32. Rxf6 {[%emt 0:0:28]} Kg7 {[%emt 0:0:0]} 33. Rf1 {[%emt 0:0:9]} Kh7 {[%emt 0:0:26]} 34. Ng4 {[%emt 0:1:34]} Nxg4 {[%emt 0:0:5]} 35. hxg4 {[%emt 0:0:16]} Qg6 {[%emt 0:0:34]} 36. Rf2 {[%emt 0:1:46]
} Rg7 {[%emt 0:0:23]} 37. Rg2 {[%emt 0:0:16]} Rf7 {[%emt 0:0:0]} 38. e5 {[%emt 0:2:8]} dxe5 {[%emt 0:2:2]} 39. Qxe5 {[%emt 0:0:47]} Qg5 {[%emt 0:0:14]} 40. Qxg5 {[%emt 0:0:0]} hxg5 {[%emt 0:0:0]} 41. Re2 {[%emt 0:1:14]
} Rf4 {[%emt 0:1:19]} 1/2-1/2

[Event "RUS-chT Premier 2021"]
[White "Alekseenko,Kirill"]
[Black "Lobanov,Sergei"]
[WhiteTeam "Медный всадник"]
[BlackTeam "СШОР"]
[Site "Sochi"]
[Round "2.14"]
[Annotator "ChessBase"]
[Result "1/2-1/2"]
[Date "2021.05.02"]
[WhiteElo "2696"]
[BlackElo "2520"]
[PlyCount "86"]
[TimeControl "60"]

1. e4 {[%emt 0:0:0]} e5 {[%emt 0:0:0]} 2. Nf3 {[%emt 0:0:2]} Nc6 {[%emt 0:0:0]
} 3. Bb5 {[%emt 0:1:5]} a6 {[%emt 0:0:19]} 4. Ba4 {[%emt 0:0:0]} Bc5 {[%emt 0:3:17]} 5. c3 {[%emt 0:0:38]} Ba7 {[%emt 0:0:43]} 6. d4 {[%emt 0:3:32]
} Nf6 {[%emt 0:1:49]} 7. 0-0 {[%emt 0:4:5]} 0-0 {[%emt 0:0:0]} 8. d5 {[%emt 0:7:19]} Ne7 {[%emt 0:0:57]} 9. Nxe5 {[%emt 0:1:43]} d6 {[%emt 0:4:50]
} 10. Nf3 {[%emt 0:0:58]} Nxe4 {[%emt 0:0:28]} 11. Bc2 {[%emt 0:1:27]
} Nf6 {[%emt 0:3:37]} 12. c4 {[%emt 0:0:41]} b5 {[%emt 0:27:43]
} 13. b3 {[%emt 0:17:20]} bxc4 {[%emt 0:2:25]} 14. bxc4 {[%emt 0:0:7]} c6 {[%emt 0:1:5]
} 15. Bg5 {[%emt 0:10:17]} cxd5 {[%emt 0:8:24]} 16. Bxf6 {[%emt 0:0:33]
} gxf6 {[%emt 0:0:1]} 17. cxd5 {[%emt 0:0:30]} Qa5 {[%emt 0:0:0]} 18. Nbd2 {[%emt 0:3:37]} Bg4 {[%emt 0:10:57]} 19. h3 {[%emt 0:14:35]} Bh5 {[%emt 0:2:38]} 20. Re1 {[%emt 0:1:11]} Nxd5 {[%emt 0:8:2]} 21. Nb3 {[%emt 0:7:35]
} Qb6 {[%emt 0:4:32]} 22. Qxd5 {[%emt 0:6:38]} Qxf2+ {[%emt 0:0:0]} 23. Kh1 {[%emt 0:1:25]} Bxf3 {[%emt 0:0:9]} 24. Qxf3 {[%emt 0:6:47]
} Qxc2 {[%emt 0:0:4]} 25. Re4 {[%emt 0:1:20]} Qf2 {[%emt 0:0:39]} 26. Qd3 {[%emt 0:2:18]
} Rfe8 {[%emt 0:4:30]} 27. Nd4 {[%emt 0:2:26]} Bxd4 {[%emt 0:0:0]} 28. Rxd4 {[%emt 0:1:11]} Re1+ {[%emt 0:0:29]} 29. Rxe1 {[%emt 0:0:0]} Qxe1+ {[%emt 0:0:2]} 30. Kh2 {[%emt 0:0:4]} Qe5+ {[%emt 0:0:4]} 31. Qg3+ {[%emt 0:0:10]} Kf8 {[%emt 0:4:14]} 32. Rxd6 {[%emt 0:0:47]} Ke7 {[%emt 0:0:29]
} 33. Rb6 {[%emt 0:0:7]} a5 {[%emt 0:0:44]} 34. a4 {[%emt 0:0:0]} Rg8 {[%emt 0:2:11]} 35. Qxe5+ {[%emt 0:1:50]} fxe5 {[%emt 0:0:0]} 36. Ra6 {[%emt 0:0:21]} h5 {[%emt 0:1:19]} 37. Rxa5 {[%emt 0:0:53]} Ke6 {[%emt 0:0:2]
} 38. Ra6+ {[%emt 0:0:31]} Kf5 {[%emt 0:0:14]} 39. Rb6 {[%emt 0:1:46]
} Ra8 {[%emt 0:0:35]} 40. Rb4 {[%emt 0:0:0]} e4 {[%emt 0:0:0]} 41. g3 {[%emt 0:6:38]} Rd8 {[%emt 0:5:31]} 42. a5 {[%emt 0:8:4]} Rd2+ {[%emt 0:1:38]} 43. Kg1 {[%emt 0:0:5]} e3 {[%emt 0:8:14]} 1/2-1/2

[Event "RUS-chT Premier 2021"]
[White "Usmanov,Vasily"]
[Black "Esipenko,Andrey"]
[WhiteTeam "СШОР"]
[BlackTeam "Медный всадник"]
[Site "Sochi"]
[Round "2.15"]
[Annotator "ChessBase"]
[Result "0-1"]
[Date "2021.05.02"]
[WhiteElo "2447"]
[BlackElo "2701"]
[PlyCount "84"]
[TimeControl "60"]

1. c4 {[%emt 0:0:0]} Nf6 {[%emt 0:0:0]} 2. Nc3 {[%emt 0:0:0]} e5 {[%emt 0:0:36]
} 3. Nf3 {[%emt 0:0:0]} Nc6 {[%emt 0:0:6]} 4. e4 {[%emt 0:0:0]} Bb4 {[%emt 0:0:47]} 5. d3 {[%emt 0:0:8]} d6 {[%emt 0:0:28]} 6. a3 {[%emt 0:0:5]
} Bxc3+ {[%emt 0:2:33]} 7. bxc3 {[%emt 0:0:5]} 0-0 {[%emt 0:0:0]} 8. g3 {[%emt 0:0:15]} Nd7 {[%emt 0:1:25]} 9. Nh4 {[%emt 0:0:16]} a6 {[%emt 0:1:48]} 10. a4 {[%emt 0:0:15]} Nc5 {[%emt 0:1:37]} 11. Bg2 {[%emt 0:0:0]} Na5 {[%emt 0:10:9]} 12. Be3 {[%emt 0:9:6]} Bd7 {[%emt 0:0:26]} 13. 0-0 {[%emt 0:0:16]} b5 {[%emt 0:2:6]} 14. axb5 {[%emt 0:2:25]} axb5 {[%emt 0:0:13]
} 15. cxb5 {[%emt 0:6:17]} Bxb5 {[%emt 0:0:4]} 16. c4 {[%emt 0:0:22]
} Bd7 {[%emt 0:0:19]} 17. Nf5 {[%emt 0:14:20]} Ne6 {[%emt 0:0:0]} 18. Qg4 {[%emt 0:14:16]} Kh8 {[%emt 0:22:5]} 19. f4 {[%emt 0:15:50]} Nc6 {[%emt 0:1:33]} 20. Rxa8 {[%emt 0:0:5]} Qxa8 {[%emt 0:0:2]} 21. fxe5 {[%emt 0:0:32]
} Nxe5 {[%emt 0:0:5]} 22. Qe2 {[%emt 0:0:25]} Qa6 {[%emt 0:0:0]} 23. d4 {[%emt 0:11:28]} Qxc4 {[%emt 0:6:50]} 24. Qb2 {[%emt 0:1:45]} Nd3 {[%emt 0:8:10]} 25. Qa1 {[%emt 0:0:1]} f6 {[%emt 0:2:15]} 26. Rd1 {[%emt 0:0:0]} Nb4 {[%emt 0:1:41]} 27. Rc1 {[%emt 0:3:47]} Qb5 {[%emt 0:1:4]} 28. d5 {[%emt 0:5:14]} Nc5 {[%emt 0:0:28]} 29. Bxc5 {[%emt 0:7:12]} dxc5 {[%emt 0:0:32]
} 30. Qc3 {[%emt 0:1:10]} Qb8 {[%emt 0:5:21]} 31. Ra1 {[%emt 0:0:0]} Bxf5 {[%emt 0:2:57]} 32. exf5 {[%emt 0:0:6]} Qb6 {[%emt 0:0:33]} 33. Qc4 {[%emt 0:0:8]} Re8 {[%emt 0:0:38]} 34. Kh1 {[%emt 0:1:17]} Qd6 {[%emt 0:1:10]
} 35. g4 {[%emt 0:0:31]} h6 {[%emt 0:0:19]} 36. h3 {[%emt 0:0:0]} Re3 {[%emt 0:1:3]} 37. Qb5 {[%emt 0:0:39]} Kh7 {[%emt 0:0:53]} 38. Rc1 {[%emt 0:0:49]} Nd3 {[%emt 0:0:48]} 39. Rf1 {[%emt 0:0:17]} Qg3 {[%emt 0:0:0]} 40. d6 {[%emt 0:0:0]} Nf2+ {[%emt 0:0:0]} 41. Rxf2 {[%emt 0:0:45]} Qxf2 {[%emt 0:0:27]} 42. dxc7 {[%emt 0:0:41]} Re1+ {[%emt 0:0:5]} 0-1

[Event "RUS-chT Premier 2021"]
[White "Fedoseev,Vladimir"]
[Black "Pershin,Denis"]
[WhiteTeam "Медный всадник"]
[BlackTeam "СШОР"]
[Site "Sochi"]
[Round "2.16"]
[Annotator "ChessBase"]
[Result "1-0"]
[Date "2021.05.02"]
[WhiteElo "2687"]
[BlackElo "2391"]
[PlyCount "57"]
[TimeControl "60"]

1. Nf3 {[%emt 0:0:0]} d5 {[%emt 0:0:0]} 2. g3 {[%emt 0:0:0]} g6 {[%emt 0:0:0]} 3. Bg2 {[%emt 0:0:0]} Bg7 {[%emt 0:0:0]} 4. d4 {[%emt 0:0:14]} Nf6 {[%emt 0:0:28]} 5. 0-0 {[%emt 0:0:12]} 0-0 {[%emt 0:0:42]} 6. c4 {[%emt 0:0:0]} c6 {[%emt 0:0:35]} 7. Qa4 {[%emt 0:0:17]} Qb6 {[%emt 0:11:24]} 8. Nc3 {[%emt 0:3:51]} Qa6 {[%emt 0:2:33]} 9. Qxa6 {[%emt 0:21:20]} Nxa6 {[%emt 0:0:0]} 10. cxd5 {[%emt 0:0:13]} cxd5 {[%emt 0:2:10]} 11. Bf4 {[%emt 0:2:35]
} Rd8 {[%emt 0:9:2]} 12. Rfc1 {[%emt 0:7:32]} Bd7 {[%emt 0:2:27]} 13. Ne5 {[%emt 0:2:19]
} Be8 {[%emt 0:0:53]} 14. Nd3 {[%emt 0:5:34]} Rac8 {[%emt 0:0:0]} 15. e3 {[%emt 0:3:46]} Nc7 {[%emt 0:8:58]} 16. a4 {[%emt 0:2:2]} e6 {[%emt 0:32:27]
} 17. Nc5 {[%emt 0:9:37]} Bc6 {[%emt 0:2:1]} 18. b4 {[%emt 0:0:0]} b6 {[%emt 0:0:9]} 19. Bxc7 {[%emt 0:2:34]} Rxc7 {[%emt 0:0:5]} 20. Nxe6 {[%emt 0:0:22]} fxe6 {[%emt 0:4:14]} 21. Nb5 {[%emt 0:0:7]} Bxb5 {[%emt 0:0:12]
} 22. Rxc7 {[%emt 0:0:8]} Bc4 {[%emt 0:0:57]} 23. Rxa7 {[%emt 0:0:40]
} Bf8 {[%emt 0:1:5]} 24. a5 {[%emt 0:0:50]} Rb8 {[%emt 0:0:0]} 25. a6 {[%emt 0:1:13]} Bd6 {[%emt 0:12:24]} 26. Bh3 {[%emt 0:0:32]} Ne8 {[%emt 0:0:31]} 27. Bxe6+ {[%emt 0:0:12]} Kh8 {[%emt 0:0:4]} 28. Bd7 {[%emt 0:1:53]
} Bxb4 {[%emt 0:4:4]} 29. Rb7 {[%emt 0:0:12]} 1-0

[Event "RUS-chT Premier 2021"]
[White "Askerov,Marat"]
[Black "Sakaev,Konstantin"]
[WhiteTeam "СШОР"]
[BlackTeam "Медный всадник"]
[Site "Sochi"]
[Round "2.17"]
[Annotator "ChessBase"]
[Result "0-1"]
[Date "2021.05.02"]
[WhiteElo "2353"]
[BlackElo "2604"]
[PlyCount "76"]
[TimeControl "60"]

1. d4 {[%emt 0:0:0]} d5 {[%emt 0:0:0]} 2. c4 {[%emt 0:0:0]} e6 {[%emt 0:0:0]} 3. Nc3 {[%emt 0:0:50]} c6 {[%emt 0:0:0]} 4. cxd5 {[%emt 0:0:19]} exd5 {[%emt 0:0:18]} 5. Bf4 {[%emt 0:2:53]} Bf5 {[%emt 0:6:1]} 6. e3 {[%emt 0:4:29]
} Nf6 {[%emt 0:7:3]} 7. h3 {[%emt 0:7:7]} Qb6 {[%emt 0:9:25]
} 8. Qc1 {[%emt 0:4:48]} Nbd7 {[%emt 0:0:54]} 9. Nf3 {[%emt 0:1:30]} Be7 {[%emt 0:2:47]
} 10. Be2 {[%emt 0:2:59]} 0-0 {[%emt 0:1:13]} 11. 0-0 {[%emt 0:0:0]} h6 {[%emt 0:5:28]} 12. Rd1 {[%emt 0:9:14]} a5 {[%emt 0:1:55]} 13. Bd3 {[%emt 0:6:18]} Bxd3 {[%emt 0:0:29]} 14. Rxd3 {[%emt 0:0:3]} Qd8 {[%emt 0:11:40]
} 15. Rd1 {[%emt 0:19:25]} Nb6 {[%emt 0:3:51]} 16. Qc2 {[%emt 0:0:0]} Re8 {[%emt 0:4:16]} 17. Ne5 {[%emt 0:3:37]} Bf8 {[%emt 0:2:59]} 18. Nd3 {[%emt 0:10:50]} Nfd7 {[%emt 0:6:59]} 19. Na4 {[%emt 0:2:22]} Nxa4 {[%emt 0:1:20]
} 20. Qxa4 {[%emt 0:0:3]} Nb6 {[%emt 0:4:20]} 21. Qc2 {[%emt 0:0:38]
} Nc4 {[%emt 0:3:8]} 22. Nc5 {[%emt 0:5:8]} Ra7 {[%emt 0:0:0]} 23. b3 {[%emt 0:1:47]} Nd6 {[%emt 0:4:2]} 24. a3 {[%emt 0:1:1]} Nb5 {[%emt 0:2:34]
} 25. Qb2 {[%emt 0:3:51]} Bxc5 {[%emt 0:2:22]} 26. dxc5 {[%emt 0:0:2]
} a4 {[%emt 0:0:9]} 27. b4 {[%emt 0:5:36]} Ra8 {[%emt 0:1:54]
} 28. Rd3 {[%emt 0:0:25]} Qh4 {[%emt 0:1:47]} 29. Rad1 {[%emt 0:0:50]} Re6 {[%emt 0:1:9]
} 30. Qc2 {[%emt 0:2:56]} Qf6 {[%emt 0:3:10]} 31. Kh2 {[%emt 0:0:0]} h5 {[%emt 0:0:59]} 32. Kg1 {[%emt 0:0:31]} h4 {[%emt 0:2:1]} 33. Bh2 {[%emt 0:1:19]} Re4 {[%emt 0:1:37]} 34. Qd2 {[%emt 0:1:46]} Rae8 {[%emt 0:0:43]
} 35. f3 {[%emt 0:0:24]} Rc4 {[%emt 0:4:0]} 36. Kf2 {[%emt 0:0:0]} Nc3 {[%emt 0:0:22]} 37. Bf4 {[%emt 0:0:56]} Nxd1+ {[%emt 0:0:39]} 38. Qxd1 {[%emt 0:0:4]} Qb2+ {[%emt 0:0:40]} 0-1

[Event "RUS-chT Premier 2021"]
[White "Ponkratov,Pavel"]
[Black "Timerkhanov,Alexander"]
[WhiteTeam "Медный всадник"]
[BlackTeam "СШОР"]
[Site "Sochi"]
[Round "2.18"]
[Annotator "ChessBase"]
[Result "1-0"]
[Date "2021.05.02"]
[WhiteElo "2619"]
[BlackElo "2400"]
[PlyCount "63"]
[TimeControl "60"]

1. d4 {[%emt 0:0:0]} d5 {[%emt 0:0:0]} 2. c4 {[%emt 0:0:0]} c6 {[%emt 0:0:0]} 3. Nc3 {[%emt 0:0:0]} Nf6 {[%emt 0:0:0]} 4. Nf3 {[%emt 0:0:0]} a6 {[%emt 0:0:0]} 5. e3 {[%emt 0:6:34]} Bf5 {[%emt 0:0:31]} 6. Nh4 {[%emt 0:0:0]} Be6 {[%emt 0:5:28]} 7. Be2 {[%emt 0:5:8]} g5 {[%emt 0:11:59]} 8. Nf3 {[%emt 0:1:14]} g4 {[%emt 0:1:20]} 9. Ne5 {[%emt 0:7:23]} Rg8 {[%emt 0:0:0]} 10. Qb3 {[%emt 0:2:16]} Ra7 {[%emt 0:2:24]} 11. cxd5 {[%emt 0:1:18]} cxd5 {[%emt 0:2:13]} 12. Bd2 {[%emt 0:0:43]} Bh6 {[%emt 0:14:17]} 13. Rc1 {[%emt 0:2:52]
} Kf8 {[%emt 0:1:35]} 14. Qa3 {[%emt 0:8:48]} Ra8 {[%emt 0:0:0]} 15. Nb5 {[%emt 0:11:40]} Nbd7 {[%emt 0:13:13]} 16. Ba5 {[%emt 0:6:32]} Qb8 {[%emt 0:10:11]} 17. Nc7 {[%emt 0:2:28]} Ra7 {[%emt 0:0:8]} 18. Nxd7+ {[%emt 0:5:56]
} Nxd7 {[%emt 0:0:14]} 19. Bb4 {[%emt 0:4:48]} Bg5 {[%emt 0:0:0]} 20. Nxe6+ {[%emt 0:3:19]} fxe6 {[%emt 0:0:4]} 21. Bxg4 {[%emt 0:0:6]} Kf7 {[%emt 0:2:9]} 22. Bh5+ {[%emt 0:0:7]} Kf8 {[%emt 0:0:6]} 23. 0-0 {[%emt 0:0:9]
} a5 {[%emt 0:0:45]} 24. f4 {[%emt 0:0:54]} Bh4 {[%emt 0:2:36]
} 25. Bd2 {[%emt 0:1:17]} Nf6 {[%emt 0:0:22]} 26. Bf3 {[%emt 0:0:4]} Kf7 {[%emt 0:4:44]
} 27. Qd3 {[%emt 0:0:6]} Qf8 {[%emt 0:1:33]} 28. Rc7 {[%emt 0:0:0]} Qh6 {[%emt 0:0:17]} 29. f5 {[%emt 0:1:23]} Ne8 {[%emt 0:3:31]} 30. fxe6+ {[%emt 0:0:9]} Kg7 {[%emt 0:0:4]} 31. Rd7 {[%emt 0:0:15]} Qxe6 {[%emt 0:0:37]
} 32. Bxd5 {[%emt 0:0:12]} 1-0